bitfinex-derivatives/quotes_SOLF0:USTF0_20250224
["timestamp","ask_amount","ask_price","bid_price","bid_amount"]
[1740395163631,6.3873,156.53,156.45,5.7289]
[1740395164224,6.3873,156.53,156.48,6.3891]
[1740395164420,0.04840315,156.51,156.47,0.04396089]
[1740395165330,0.04840315,156.51,156.5,6.3883]
[1740395166231,0.04840315,156.51,156.47,0.04396089]
[1740395166426,0.04840315,156.51,156.48,6.3891]
[1740395167023,0.04840315,156.51,156.47,0.04396089]
[1740395167226,6.43630315,156.51,156.47,0.04396089]
[1740395167421,10.34840315,156.51,156.47,0.04396089]
[1740395167623,22.95056347,156.5,156.47,0.04396089]
[1740395167831,22.95056347,156.48,156.47,0.04396089]
[1740395168428,29.33966347,156.48,156.47,0.04396089]
[1740395169133,30.48461024,156.48,156.47,0.04396089]
[1740395169331,6.3904,156.45,156.41,3.779]
[1740395170427,0.04485645,156.45,156.41,3.8239075]
[1740395170922,22.95056347,156.52,156.48,6.3891]
[1740395171126,22.95056347,156.52,156.41,26.72956347]
[1740395171332,33.25056347,156.54,156.43,22.95056347]
[1740395171532,33.25056347,156.54,156.44,1.8414]
[1740395171733,33.25056347,156.54,156.48,6.3888]
[1740395171927,0.04516462,156.53,156.48,6.3888]
[1740395172134,0.04516462,156.53,156.49,0.04883844]
[1740395173337,22.95056347,156.5,156.49,0.04883844]
[1740395173523,22.95056347,156.5,156.41,171.079]
[1740395173724,22.95056347,156.46,156.35,22.95056347]
[1740395173924,22.95056347,156.46,156.36,1.8516]
[1740395174332,22.95056347,156.46,156.39,6.3926]
[1740395174534,22.95056347,156.44,156.36,1.8516]
[1740395174728,22.95056347,156.42,156.41,0.04511346]
[1740395175132,22.95056347,156.42,156.36,1.8516]
[1740395175635,36.75905962,156.42,156.36,8.2456]
[1740395175838,36.75905962,156.42,156.36,1.8516]
[1740395176533,0.04098713,156.41,156.37,0.040701]
[1740395176738,0.04098713,156.41,156.36,1.8516]
[1740395177036,0.04098713,156.41,156.37,0.04810595]
[1740395180842,0.04098713,156.41,156.4,6.3924]
[1740395181042,227.75905962,156.48,156.37,0.04810595]
[1740395181243,47.05905962,156.48,156.34,1.8961]
[1740395181541,36.75905962,156.48,156.43,6.391]
[1740395181844,80.70648625,156.5,156.38,36.75905962]
[1740395182141,80.70648625,156.5,156.46,6.3897]
[1740395182338,0.04289886,156.46,156.39,1.953]
[1740395182543,10.3,156.5,156.46,0.04865051]
[1740395182742,10.3,156.5,156.39,1.953]
[1740395182943,10.34178461,156.5,156.46,0.04794007]
[1740395183142,10.3,156.5,156.46,0.04794007]
[1740395183345,10.34721391,156.5,156.46,0.04794007]
[1740395183846,0.04721391,156.5,156.46,0.04794007]
[1740395184240,70.40648625,156.52,156.46,0.04794007]
[1740395184846,70.40648625,156.52,156.48,6.3887]
[1740395185046,70.40648625,156.52,156.46,0.04794007]
[1740395185338,0.04489122,156.51,156.46,0.04794007]
[1740395185544,0.04489122,156.51,156.47,6.3893]
[1740395185943,0.04489122,156.51,156.46,0.04794007]
[1740395186139,36.80395084,156.51,156.46,0.04794007]
[1740395187044,0.04489122,156.51,156.46,0.04794007]
[1740395188643,0.04489122,156.51,156.46,6.43754007]
[1740395188943,0.04489122,156.51,156.46,0.04794007]
[1740395190243,0.04489122,156.51,156.5,6.3883]
[1740395192348,1.14611775,156.55,156.5,6.3883]
[1740395192847,36.75905962,156.56,156.52,6.3872]
[1740395193043,36.75905962,156.56,156.47,2.0217]
[1740395193451,0.04361691,156.53,156.5,0.04310964]
[1740395194048,47.05905962,156.59,156.5,0.04310964]
[1740395194249,1.14584462,156.58,156.5,0.04310964]
[1740395194451,70.40648625,156.6,156.5,0.04310964]
[1740395194654,70.40648625,156.6,156.47,38.78075962]
[1740395195244,70.40648625,156.6,156.57,6.3851]
[1740395195749,70.40648625,156.6,156.57,6.43422245]
[1740395196141,70.40648625,156.6,156.58,6.385]
[1740395197241,70.40648625,156.6,156.59,6.3846]
[1740395197442,0.46627248,156.64,156.57,0.04912245]
[1740395198751,0.46627248,156.64,156.6,6.3842]
[1740395199249,0.46627248,156.64,156.6,6.4322477]
[1740395201653,22.91369954,156.62,156.6,0.0480477]
[1740395202048,22.91369954,156.62,156.53,2.0297]
[1740395202256,22.91369954,156.59,156.52,1.8955]
[1740395202450,22.91369954,156.55,156.51,1.9568]
[1740395203346,22.95783208,156.55,156.51,2.00487504]
[1740395204550,22.95783208,156.55,156.51,8.39267504]
[1740395205456,22.95783208,156.55,156.52,6.3872]
[1740395205759,0.04413254,156.55,156.52,6.3872]
[1740395206059,0.04413254,156.55,156.53,6.3869]
[1740395206759,0.04413254,156.55,156.54,6.3867]
[1740395206954,36.68882864,156.6,156.51,2.00487504]
[1740395207364,36.68882864,156.6,156.51,1.9568]
[1740395207660,36.68882864,156.6,156.57,6.3852]
[1740395208053,117.39531489,156.63,156.57,6.3852]
[1740395208254,1.14560019,156.62,156.57,6.42844878]
[1740395208449,117.39531489,156.63,156.57,6.42844878]
[1740395209548,6.3834,156.62,156.57,6.42844878]
[1740395212156,46.98882864,156.63,156.57,0.04324878]
[1740395212457,1.14531672,156.62,156.57,0.04324878]
[1740395212662,43.07212864,156.63,156.58,6.385]
[1740395213262,6.3834,156.62,156.58,6.385]
[1740395213459,36.68882864,156.63,156.57,0.04324878]
[1740395213763,36.68882864,156.63,156.59,6.3844]
[1740395214360,36.68882864,156.63,156.6,6.3842]
[1740395214561,36.68882864,156.63,156.57,0.04324878]
[1740395214966,6.3835,156.62,156.57,0.04324878]
[1740395215463,6.3835,156.62,156.57,6.42844878]
[1740395215864,43.07212864,156.63,156.58,6.385]
[1740395216164,36.68882864,156.63,156.58,6.385]
[1740395216568,43.07182864,156.63,156.59,6.3846]
[1740395216759,36.68882864,156.63,156.59,6.3846]
[1740395216959,0.46627248,156.64,156.57,0.04324878]
[1740395217161,0.46627248,156.64,156.59,6.3846]
[1740395217363,0.46627248,156.64,156.57,0.04324878]
[1740395218265,6.84897248,156.64,156.6,6.3842]
[1740395218767,6.84897248,156.64,156.6,0.04329076]
[1740395220168,6.84897248,156.64,156.6,6.42749076]
[1740395220362,46.96882864,156.66,156.6,0.04329076]
[1740395220363,6.3824,156.65,156.6,0.04329076]
[1740395220666,1.14416009,156.64,156.6,0.04329076]
[1740395220864,11.54093467,156.65,156.6,0.04329076]
[1740395221068,36.68882864,156.63,156.6,0.04329076]
[1740395221466,6.3838,156.61,156.6,0.04329076]
[1740395222063,6.3852,156.58,156.51,1.9568]
[1740395222567,36.68882864,156.59,156.52,6.3873]
[1740395222769,6.3857,156.57,156.52,6.3873]
[1740395223168,0.04187248,156.56,156.53,0.04087297]
[1740395223365,6.3867,156.54,156.53,0.04087297]
[1740395223869,36.73070112,156.56,156.53,0.04087297]
[1740395224069,0.04187248,156.56,156.53,0.04087297]
[1740395224369,6.3865,156.55,156.53,0.04087297]
[1740395224571,0.04187248,156.56,156.53,0.04087297]
[1740395224867,0.04187248,156.56,156.54,6.3864]
[1740395225068,0.04187248,156.56,156.53,0.04087297]
[1740395226871,22.92758862,156.55,156.53,0.04087297]
[1740395227069,0.04187248,156.56,156.53,0.04087297]
[1740395227267,22.92758862,156.55,156.53,0.04087297]
[1740395227465,22.92758862,156.55,156.48,8.3193]
[1740395227670,22.92758862,156.52,156.48,1.9303]
[1740395228574,22.9758318,156.52,156.48,1.97604478]
[1740395229178,22.9758318,156.52,156.48,0.04574478]
[1740395231279,22.92758862,156.5,156.48,0.04574478]
[1740395234977,29.31588862,156.5,156.48,0.04574478]
[1740395235778,33.20758862,156.49,156.41,1.9174]
[1740395235977,22.92758862,156.43,156.36,3.8257]
[1740395236176,33.20758862,156.49,156.36,3.8257]
[1740395236177,22.92758862,156.41,156.36,3.8257]
[1740395236373,29.31968862,156.41,156.36,10.2196]
[1740395236578,22.92758862,156.39,156.36,3.8257]
[1740395237079,22.97246901,156.39,156.36,1.96955213]
[1740395240178,0.04488039,156.39,156.36,1.96955213]
[1740395241385,0.04488039,156.39,156.36,8.36355213]
[1740395243285,22.97246901,156.39,156.36,1.96955213]
[1740395243489,22.97246901,156.39,156.36,0.04165213]
[1740395245389,0.04488039,156.39,156.36,0.04165213]
[1740395245581,22.92758862,156.37,156.31,1.911]
[1740395245788,22.92758862,156.35,156.31,1.911]
[1740395246389,22.92758862,156.35,156.31,8.3069]
[1740395246795,22.97114396,156.35,156.31,8.35430112]
[1740395247493,0.04355534,156.35,156.31,8.35430112]
[1740395248594,0.04355534,156.35,156.31,1.95840112]
[1740395248995,0.04355534,156.35,156.32,6.3953]
[1740395249397,0.04355534,156.35,156.31,1.95840112]
[1740395249599,0.04355534,156.35,156.33,6.3951]
[1740395249999,29.31968862,156.41,156.31,24.88598974]
[1740395250199,22.92758862,156.41,156.32,1.9456]
[1740395250395,6.3926,156.4,156.32,1.9456]
[1740395250594,6.3926,156.4,156.35,6.3941]
[1740395251199,6.3926,156.4,156.36,0.04547861]
[1740395251200,0.04339829,156.39,156.36,0.04547861]
[1740395252597,22.97098691,156.39,156.36,0.04547861]
[1740395253203,29.36398691,156.39,156.36,0.04547861]
[1740395254501,22.92758862,156.37,156.36,0.04547861]
[1740395255099,29.32118862,156.37,156.36,0.04547861]
[1740395256409,22.92758862,156.37,156.3,6.3962]
[1740395256704,22.92758862,156.37,156.26,1.8914]
[1740395256705,22.92758862,156.32,156.26,5.7747]
[1740395256901,29.32358862,156.32,156.26,12.1728]
[1740395257302,22.92758862,156.3,156.26,3.8833]
[1740395257496,22.92758862,156.3,156.26,3.93137015]
[1740395257701,22.97370397,156.3,156.26,3.93137015]
[1740395258807,0.04611535,156.3,156.27,6.3976]
[1740395259405,0.04611535,156.3,156.28,6.397]
[1740395260606,0.04611535,156.3,156.26,3.93137015]
[1740395261810,0.04611535,156.3,156.27,6.3975]
[1740395262012,0.04611535,156.3,156.26,3.93137015]
[1740395262304,0.04611535,156.3,156.26,0.04807015]
[1740395262510,0.04611535,156.3,156.28,6.397]
[1740395267317,0.04611535,156.3,156.26,0.04807015]
[1740395267512,10.3,156.34,156.26,0.04807015]
[1740395267708,22.92758862,156.36,156.26,0.04807015]
[1740395267909,22.92758862,156.36,156.22,3.8223]
[1740395267910,10.3,156.42,156.36,6.394]
[1740395268109,80.70648625,156.42,156.29,22.92758862]
[1740395268314,80.70648625,156.42,156.3,3.9448]
[1740395268514,6.3932,156.38,156.34,6.3945]
[1740395268813,0.04531185,156.37,156.34,6.3945]
[1740395269708,0.04531185,156.37,156.33,0.04053314]
[1740395270315,0.04531185,156.37,156.36,6.394]
[1740395270913,0.04531185,156.37,156.33,0.04053314]
[1740395271111,0.04531185,156.37,156.35,6.3941]
[1740395272117,0.04531185,156.37,156.33,0.04053314]
[1740395272918,0.04531185,156.37,156.34,6.3948]
[1740395273314,0.04531185,156.37,156.33,0.04053314]
[1740395273618,22.92758862,156.36,156.33,0.04053314]
[1740395274215,22.92758862,156.34,156.33,0.04053314]
[1740395274415,22.92758862,156.34,156.26,171.3259]
[1740395274616,22.92758862,156.34,156.28,6.3971]
[1740395274617,22.92758862,156.32,156.28,6.3971]
[1740395275717,22.92758862,156.32,156.28,6.44571845]
[1740395275718,22.97232014,156.32,156.28,6.44571845]
[1740395276219,0.04473152,156.32,156.28,0.04861845]
[1740395276616,0.04473152,156.32,156.31,6.3961]
[1740395278217,0.04473152,156.32,156.29,1.8744]
[1740395278616,0.04473152,156.32,156.28,0.04861845]
[1740395279316,22.97232014,156.32,156.28,0.04861845]
[1740395279619,29.36802014,156.32,156.28,0.04861845]
[1740395279817,22.97232014,156.32,156.28,0.04861845]
[1740395280624,22.97232014,156.32,156.28,6.44591845]
[1740395281015,29.36802014,156.32,156.28,0.04861845]
[1740395281513,11.6135833,156.31,156.28,0.04861845]
[1740395282124,11.6135833,156.31,156.29,6.3968]
[1740395282322,11.6135833,156.31,156.28,0.04861845]
[1740395282527,0.04473152,156.32,156.28,0.04861845]
[1740395282720,0.04473152,156.32,156.3,6.3962]
[1740395283027,0.04473152,156.32,156.28,0.04861845]
[1740395283219,16.41346184,156.35,156.28,0.04861845]
[1740395283417,34.54117192,156.36,156.32,6.3954]
[1740395283926,11.6135833,156.36,156.32,6.3954]
[1740395284125,11.6135833,156.36,156.29,1.9478]
[1740395284126,16.41232086,156.36,156.29,1.9478]
[1740395284325,0.04215634,156.34,156.33,6.3952]
[1740395285029,11.6135833,156.36,156.34,6.3947]
[1740395286128,11.6135833,156.36,156.35,6.3944]
[1740395286729,0.04167667,156.37,156.35,6.3944]
[1740395288323,0.04167667,156.37,156.34,0.04629481]
[1740395288523,0.04167667,156.37,156.36,6.394]
[1740395288720,10.34167667,156.37,156.34,0.04629481]
[1740395288924,6.3953,156.33,156.26,3.8459]
[1740395289123,22.92758862,156.31,156.26,3.8459]
[1740395289622,22.92758862,156.31,156.26,10.244]
[1740395289835,22.92758862,156.29,156.23,2.0264]
[1740395290030,33.22758862,156.29,156.27,0.04694516]
[1740395290325,39.62448862,156.29,156.2,3.9838]
[1740395290526,22.92758862,156.24,156.2,3.9838]
[1740395290831,22.92758862,156.24,156.19,8.83387227]
[1740395291027,29.32578862,156.26,156.19,15.23477227]
[1740395291231,11.6135833,156.25,156.19,15.23477227]
[1740395291533,0.04332609,156.24,156.2,0.04088072]
[1740395295433,6.44232609,156.24,156.2,0.04088072]
[1740395296936,6.3994,156.23,156.2,0.04088072]
[1740395297136,0.04332609,156.24,156.2,0.04088072]
[1740395298331,6.4002,156.21,156.2,0.04088072]
[1740395298936,16.7002,156.21,156.2,0.04088072]
[1740395299932,6.4017,156.18,156.12,173.8837]
[1740395300135,10.3,156.21,156.09,1.9072]
[1740395300327,36.83710815,156.2,156.09,1.9072]
[1740395300531,6.4007,156.2,156.14,6.4029]
[1740395301234,6.44193237,156.19,156.15,0.0457294]
[1740395302231,0.04083237,156.19,156.15,0.0457294]
[1740395303337,0.04083237,156.19,156.15,6.4482294]
[1740395303944,0.04083237,156.19,156.15,0.0457294]
[1740395304141,6.4014,156.18,156.15,0.0457294]
[1740395306144,0.04083237,156.19,156.15,0.0457294]
[1740395306339,6.4021,156.17,156.15,0.0457294]
[1740395306539,0.04083237,156.19,156.15,0.0457294]
[1740395307841,6.4018,156.18,156.15,0.0457294]
[1740395308447,6.4022,156.16,156.15,0.0457294]
[1740395308648,36.83710815,156.18,156.08,6.4053]
[1740395308847,36.83710815,156.15,156.05,4.0175]
[1740395309050,10.3,156.14,156.05,4.0175]
[1740395309839,0.04074102,156.11,156.08,0.04355818]
[1740395311143,0.04074102,156.11,156.1,6.4047]
[1740395311542,47.13710815,156.18,156.08,0.04355818]
[1740395311849,6.4026,156.16,156.12,6.4038]
[1740395312044,47.13710815,156.18,156.05,4.0175]
[1740395312243,6.4036,156.13,156.09,6.4048]
[1740395312445,47.13710815,156.18,156.05,4.0175]
[1740395312752,0.04835281,156.13,156.09,0.04415963]
[1740395313047,6.45205281,156.13,156.09,6.44915963]
[1740395313444,0.04835281,156.13,156.09,0.04415963]
[1740395313648,6.404,156.12,156.09,0.04415963]
[1740395313847,0.04835281,156.13,156.09,0.04415963]
[1740395314346,6.45205281,156.13,156.09,6.44895963]
[1740395315749,0.04835281,156.13,156.09,6.44895963]
[1740395316146,0.04835281,156.13,156.1,6.4047]
[1740395316939,0.04835281,156.13,156.09,0.04415963]
[1740395317746,23.05588517,156.12,156.09,0.04415963]
[1740395318544,23.05588517,156.1,156.09,0.04415963]
[1740395318746,23.05588517,156.08,156.06,6.4062]
[1740395318941,33.35588517,156.1,156.0,26.93168517]
[1740395319147,33.35588517,156.1,156.01,1.9345]
[1740395319863,0.04039081,156.07,156.04,0.04148496]
[1740395320744,23.05588517,156.06,156.04,6.44858496]
[1740395320950,23.05588517,156.06,156.04,0.04148496]
[1740395323053,23.05588517,156.06,156.04,6.44858496]
[1740395323252,0.04039081,156.07,156.04,0.04148496]
[1740395323950,0.04039081,156.07,156.05,6.4064]
[1740395325151,23.05588517,156.06,156.05,6.4064]
[1740395326148,23.05588517,156.06,156.04,0.04148496]
[1740395326951,23.05588517,156.06,156.04,6.44848496]
[1740395328653,23.05588517,156.06,156.05,6.4067]
[1740395329850,0.04039081,156.07,156.06,6.4063]
[1740395331758,0.04039081,156.07,156.04,0.04148496]
[1740395331965,0.04039081,156.07,156.05,6.4066]
[1740395332259,0.04039081,156.07,156.04,0.04148496]
[1740395332558,0.04039081,156.07,156.06,6.4063]
[1740395337662,14.8054718,156.07,156.06,6.4063]
[1740395339064,14.8054718,156.07,156.05,6.4065]
[1740395340664,14.8054718,156.07,156.04,0.04148496]
[1740395340865,14.8054718,156.07,156.06,6.4063]
[1740395342165,0.04039081,156.07,156.06,6.4063]
[1740395342364,14.76508099,156.09,156.08,6.4055]
[1740395342869,4.80637522,156.12,156.04,14.80656595]
[1740395343067,4.80637522,156.12,156.11,6.4041]
[1740395343068,14.76508099,156.12,156.11,6.4041]
[1740395343769,11.65200129,156.13,156.12,6.4039]
[1740395343976,0.04396704,156.13,156.12,6.4039]
[1740395344875,6.404,156.12,156.1,0.04723926]
[1740395345173,23.04939226,156.11,156.1,0.04723926]
[1740395345373,29.45369226,156.11,156.1,0.04723926]
[1740395345566,23.04939226,156.11,156.1,0.04723926]
[1740395347676,29.45369226,156.11,156.1,0.04723926]
[1740395347978,23.04939226,156.11,156.1,0.04723926]
[1740395348483,23.04939226,156.11,156.03,2.0322]
[1740395348675,23.04939226,156.09,156.05,6.4065]
[1740395349268,29.45469226,156.09,156.04,6.4071]
[1740395349672,0.04046547,156.08,156.05,0.04643232]
[1740395350180,0.04046547,156.08,156.05,6.45313232]
[1740395350573,0.04046547,156.08,156.05,0.04643232]
[1740395350775,0.04046547,156.08,156.07,6.4059]
[1740395350974,11.69143532,156.08,156.07,6.4059]
[1740395351276,23.04939226,156.11,156.05,0.04643232]
[1740395351978,8.63393532,156.12,156.05,0.04643232]
[1740395352174,13.43992853,156.12,156.05,0.04643232]
[1740395352383,0.04540214,156.1,156.05,0.04643232]
[1740395352779,23.04939226,156.09,156.05,0.04643232]
[1740395352973,6.406,156.07,156.05,0.04643232]
[1740395353379,23.04939226,156.09,156.05,0.04643232]
[1740395353576,23.04939226,156.07,156.05,0.04643232]
[1740395354181,29.45559226,156.07,156.05,0.04643232]
[1740395354685,23.04939226,156.09,156.06,6.406]
[1740395354883,27.85622281,156.09,156.05,0.04643232]
[1740395355084,23.04939226,156.09,156.05,0.04643232]
[1740395355277,29.45469226,156.09,156.05,6.45293232]
[1740395355477,23.04939226,156.09,156.05,0.04643232]
[1740395356083,23.04939226,156.09,156.06,6.4063]
[1740395357373,27.8562224,156.09,156.06,6.4063]
[1740395357783,27.8562224,156.09,156.05,0.04643232]
[1740395357977,29.45449226,156.09,156.05,6.45313232]
[1740395358481,4.80682487,156.08,156.05,6.45313232]
[1740395358683,27.85621713,156.09,156.05,6.45313232]
[1740395360779,4.80682487,156.09,156.05,0.04643232]
[1740395360985,0.04540214,156.1,156.05,0.04643232]
[1740395363487,0.04540214,156.1,156.09,6.4051]
[1740395366087,16.38393577,156.11,156.1,6.4047]
[1740395366288,10.26853577,156.13,156.1,6.4047]
[1740395367194,10.31318862,156.13,156.1,6.44829712]
[1740395367487,16.71668862,156.13,156.1,6.44829712]
[1740395367781,10.31318862,156.13,156.1,6.44829712]
[1740395367983,0.04465285,156.13,156.1,6.44829712]
[1740395368681,0.04465285,156.13,156.1,0.04359712]
[1740395368885,0.04465285,156.13,156.11,6.4042]
[1740395369689,0.04465285,156.13,156.12,6.4039]
[1740395371589,14.79533754,156.13,156.12,6.4039]
[1740395372280,14.75068469,156.16,156.1,14.79428181]
[1740395372483,85.15717094,156.17,156.12,14.75068469]
[1740395372691,70.40648625,156.17,156.12,14.75068469]
[1740395372992,70.40648625,156.17,156.16,6.4022]
[1740395376594,70.40648625,156.17,156.15,0.04691957]
[1740395377190,29.47772852,156.18,156.15,0.04691957]
[1740395377384,0.0404346,156.18,156.15,6.44951957]
[1740395377590,0.0404346,156.18,156.15,0.04691957]
[1740395377890,0.0404346,156.18,156.17,6.4018]
[1740395379792,3.46e-05,156.18,156.17,6.4018]
[1740395381493,3.46e-05,156.18,156.17,29.43769392]
[1740395383192,23.03589392,156.3,156.17,29.43769392]
[1740395383493,23.03589392,156.3,156.2,23.03589392]
[1740395383692,13.39211163,156.31,156.2,23.03589392]
[1740395383889,365.52275117,156.38,156.36,6.394]
[1740395384198,259.88771863,156.4,156.37,46.07178784]
[1740395384199,87.35594431,156.4,156.37,46.07178784]
[1740395384395,0.04708753,156.39,156.38,6.3932]
[1740395385196,16.07477292,156.4,156.38,6.3932]
[1740395385197,6.045e-05,156.4,156.38,6.3932]
[1740395385396,46.3090096,156.41,156.37,46.07178784]
[1740395385592,4.9890096,156.41,156.4,29.42829392]
[1740395386094,39.48151962,156.43,156.4,23.03589392]
[1740395386289,1.9145,156.54,156.42,23.03589392]
[1740395386494,4.774e-05,156.43,156.42,23.03589392]
[1740395386696,5.7785,156.6,156.42,23.03589392]
[1740395386697,405.41966484,156.45,156.44,6.3908]
[1740395386893,167.63154022,156.45,156.44,29.42669392]
[1740395387697,151.3345276,156.45,156.44,43.062397]
[1740395388193,0.02897156,156.46,156.45,6.3904]
[1740395388495,5.7785,156.6,156.44,101.10270789]
[1740395388697,5.7785,156.6,156.5,36.671597]
[1740395389492,5.7785,156.6,156.53,0.04647506]
[1740395390302,5.7785,156.6,156.55,592.99588703]
[1740395391400,191.0,156.67,156.55,592.99588703]
[1740395391696,3.8544,156.62,156.56,657.42699792]
[1740395391896,40.525997,156.62,156.59,0.04798706]
[1740395394401,6.3842,156.61,156.59,0.04798706]
[1740395394601,40.525997,156.62,156.59,0.04798706]
[1740395395001,6.3846,156.59,156.58,848.14439643]
[1740395395202,43.056197,156.59,156.58,649.13899232]
[1740395395405,43.056197,156.59,156.58,643.04019232]
[1740395396905,6.43083072,156.6,156.58,643.04019232]
[1740395397807,6.43083072,156.6,156.57,0.04155223]
[1740395398908,0.04653072,156.6,156.57,0.04155223]
[1740395399304,6.43113072,156.6,156.57,0.04155223]
[1740395399810,6.3851,156.58,156.57,0.04155223]
[1740395400303,0.04653072,156.6,156.57,0.04155223]
[1740395400509,6.3847,156.59,156.57,0.04155223]
[1740395400705,0.04653072,156.6,156.57,0.04155223]
[1740395401306,6.3851,156.58,156.57,0.04155223]
[1740395402808,6.3851,156.58,156.57,5.223e-05]
[1740395403815,8.4186,156.58,156.57,5.223e-05]
[1740395410417,6.3851,156.58,156.57,5.223e-05]
[1740395411415,6.3848,156.59,156.57,5.223e-05]
[1740395411626,6.3848,156.59,156.58,22.91931207]
[1740395412121,6.43103072,156.6,156.58,22.91931207]
[1740395412622,26.67921207,156.7,156.59,6.3846]
[1740395412823,26.67921207,156.7,156.6,22.91931207]
[1740395413313,6.3838,156.61,156.6,22.91931207]
[1740395413517,26.67921207,156.7,156.58,22.91931207]
[1740395413713,26.67921207,156.7,156.62,0.0472401]
[1740395414017,0.04184327,156.66,156.62,0.0472401]
[1740395414417,6.383,156.63,156.62,0.0472401]
[1740395414925,0.04184327,156.66,156.62,22.96655217]
[1740395415124,0.04184327,156.66,156.62,0.0472401]
[1740395415422,6.383,156.63,156.62,0.0472401]
[1740395417016,0.04184327,156.66,156.62,0.0472401]
[1740395417226,102.91460091,156.76,156.65,22.91931207]
[1740395417421,102.91460091,156.76,156.67,22.91931207]
[1740395417724,6.3797,156.72,156.67,22.91931207]
[1740395417925,102.91460091,156.76,156.67,22.91931207]
[1740395418222,22.91931207,156.74,156.65,22.91931207]
[1740395418425,22.91931207,156.74,156.7,0.04177738]
[1740395418622,125.83391298,156.76,156.7,0.04177738]
[1740395418825,6.3796,156.72,156.7,0.04177738]
[1740395419217,102.91460091,156.76,156.7,0.04177738]
[1740395419428,6.3798,156.71,156.7,0.04177738]
[1740395420524,109.29400091,156.72,156.7,0.04177738]
[1740395422121,102.91460091,156.72,156.7,0.04177738]
[1740395422716,28.61761207,156.78,156.7,0.04177738]
[1740395423125,6.3794,156.73,156.7,0.04177738]
[1740395423626,5.6983,156.78,156.71,22.91931207]
[1740395423827,6.3788,156.74,156.71,22.91931207]
[1740395424022,1.9499,156.78,156.71,22.91931207]
[1740395424925,6.379,156.73,156.71,22.91931207]
[1740395425323,1.9499,156.78,156.71,22.91931207]
[1740395425526,6.3791,156.73,156.71,22.91931207]
[1740395425724,24.86921207,156.78,156.7,0.04177738]
[1740395425925,22.91931207,156.76,156.7,0.04177738]
[1740395426327,6.3798,156.71,156.7,0.04177738]
[1740395427026,1.9499,156.78,156.7,22.96108945]
[1740395427227,1.9499,156.78,156.72,22.91931207]
[1740395427630,6.3789,156.74,156.73,0.04641517]
[1740395431731,6.3782,156.75,156.73,0.04641517]
[1740395432230,6.3782,156.75,156.73,6.17818998]
[1740395432835,6.3785,156.74,156.73,6.17818998]
[1740395433324,6.3785,156.74,156.73,0.04641517]
[1740395439032,12.752,156.81,156.73,0.04641517]
[1740395440141,6.3785,156.74,156.73,0.04641517]
[1740395448538,6.3784,156.75,156.73,0.04641517]
[1740395448743,12.752,156.81,156.73,0.04641517]
[1740395449944,6.3785,156.74,156.73,0.04641517]
[1740395450849,12.752,156.81,156.73,0.04641517]
[1740395451148,6.3783,156.75,156.73,0.04641517]
[1740395451348,51.27185632,156.86,156.75,6.378]
[1740395451550,14.7004,156.86,156.75,36.57145632]
[1740395451750,14.7004,156.86,156.79,0.04740038]
[1740395451947,12.7437,156.91,156.81,29.2114198]
[1740395452147,12.7437,156.91,156.83,22.8358198]
[1740395452446,3.7755,156.92,156.84,0.04466238]
[1740395452852,3.7755,156.92,156.85,22.8358198]
[1740395453148,2.0013,156.95,156.87,22.8358198]
[1740395453344,6.3705,156.94,156.91,22.8358198]
[1740395453541,2.0013,156.95,156.91,22.8358198]
[1740395454253,6.3705,156.94,156.91,22.8358198]
[1740395455554,3.9767,156.99,156.91,22.8358198]
[1740395455946,3.9767,156.99,156.93,0.04467446]
[1740395456852,6.3703,156.95,156.93,0.04467446]
[1740395457049,3.9767,156.99,156.93,0.04467446]
[1740395457252,26.8125198,156.99,156.93,0.04467446]
[1740395458145,6.3704,156.94,156.93,7.446e-05]
[1740395461260,6.4147821,156.95,156.93,7.446e-05]
[1740395461457,0.0446821,156.95,156.93,7.446e-05]
[1740395462157,38.2587,157.13,156.94,22.8358198]
[1740395462347,24.78984883,157.07,156.96,22.8358198]
[1740395462552,24.78984883,157.07,156.94,22.8358198]
[1740395462553,22.8358198,157.03,156.94,22.8358198]
[1740395462852,5.6723,157.02,156.94,22.8358198]
[1740395463350,5.6723,157.02,156.96,0.04055078]
[1740395463951,6.3695,156.97,156.96,0.04055078]
[1740395464458,5.6723,157.02,156.96,22.87637058]
[1740395464459,1.91,157.02,156.96,22.87637058]
[1740395464757,1.91,157.02,156.96,0.04055078]
[1740395464958,24.7458198,157.02,156.96,0.04055078]
[1740395465661,22.8358198,157.0,156.9,22.8358198]
[1740395466165,6.3714,156.92,156.9,22.8358198]
[1740395466356,22.8358198,156.98,156.88,22.8358198]
[1740395466559,3.956,156.97,156.88,22.8358198]
[1740395466957,0.04055078,156.94,156.91,0.04033985]
[1740395467365,6.3712,156.93,156.91,0.04033985]